[Event "2nd Cambridge Open 2024"]
[Site "Cambridge"]
[Date "2024.02.19"]
[Round "1.24"]
[White "Pozzari, Simone"]
[Black "Homer, Stephen J"]
[Result "1-0"]
[ECO "A48"]
[WhiteElo "2282"]
[BlackElo "2045"]
[Annotator "ChessBase"]
[PlyCount "61"]
[EventDate "2024.02.18"]
[EventType "swiss"]
[EventCountry "ENG"]
[SourceTitle "playchess.com"]
[Source "ChessBase"]
[SourceQuality "1"]
[TimeControl "5400+30"]

1. d4 {[%emt 0:00:09]} Nf6 {[%emt 0:00:02]} 2. Bf4 {[%emt 0:00:11]} b6 {[%emt 0:03:28]} 3. e3 {[%emt 0:00:23]} Bb7 {[%emt 0:01:26]} 4. Nd2 {[%emt 0:00:10]} d6 {[%emt 0:03:51]} 5. h3 {[%emt 0:00:51]} g6 {[%emt 0:02:05]} 6. Ngf3 {[%emt 0:00:11]} Bg7 {[%emt 0:00:29]} 7. Bd3 {[%emt 0:00:45]} O-O {[%emt 0:01:37]} 8. O-O {[%emt 0:02:18]} c5 {[%emt 0:00:52]} 9. c3 {[%emt 0:03:12]} Nc6 {[%emt 0:07:45]} 10. Qe2 {[%emt 0:05:19]} Rc8 {[%emt 0:29:10]} 11. a3 {[%emt 0:02:56]} Rc7 {[%emt 0:09:58]} 12. Rad1 {[%emt 0:05:40]} Qc8 {[%emt 0:09:31]} 13. Bh2 {[%emt 0:02:43]} Bh6 {[%emt 0:06:45]} 14. e4 {[%emt 0:07:10]} cxd4 {[%emt 0:03:07]} 15. cxd4 {[%emt 0:00:21]} Nh5 {[%emt 0:00:28]} 16. d5 {[%emt 0:02:31]} Nb8 {[%emt 0:00:27]} 17. Nd4 {[%emt 0:00:09]} Ba6 {[%emt 0:03:14]} 18. e5 {[%emt 0:05:34]} Bxd3 {[%emt 0:00:53]} 19. Qxd3 {[%emt 0:00:04]} dxe5 {[%emt 0:00:27]} 20. Bxe5 {[%emt 0:00:22]} Rd7 {[%emt 0:00:32]} 21. Qf3 {[%emt 0:01:46]} Qc5 {[%emt 0:01:21]} 22. Nf5 {[%emt 0:09:34]} Bxd2 {[%emt 0:02:55]} 23. Rxd2 {[%emt 0:02:49]} f6 {[%emt 0:00:43]} 24. Bd4 {[%emt 0:00:29]} Qc4 {[%emt 0:02:18]} 25. b3 {[%emt 0:06:40]} Qc7 {[%emt 0:01:24]} 26. Re1 {[%emt 0:03:07]} gxf5 {[%emt 0:04:27]} 27. Qxh5 {[%emt 0:00:16]} Rxd5 {[%emt 0:00:07]} 28. Bxf6 {[%emt 0:00:50]} Rxf6 {[%emt 0:02:54]} 29. Rxd5 {[%emt 0:00:14]} e6 {[%emt 0:00:23]} 30. Qe8+ {[%emt 0:00:13]} Kg7 {[%emt 0:00:15]} 31. Rd8 {[%emt 0:00:25]} 1-0

[Event "2nd Cambridge Open 2024"]
[Site "Cambridge"]
[Date "2024.02.19"]
[Round "1.25"]
[White "Blauhut, Holger"]
[Black "Dishman, Stephen"]
[Result "1/2-1/2"]
[ECO "B11"]
[WhiteElo "2016"]
[BlackElo "2273"]
[Annotator "ChessBase"]
[PlyCount "55"]
[EventDate "2024.02.18"]
[EventType "swiss"]
[EventCountry "ENG"]
[SourceTitle "playchess.com"]
[Source "ChessBase"]
[SourceQuality "1"]
[TimeControl "5400+30"]

1. e4 {[%emt 0:00:07]} c6 {[%emt 0:00:06]} 2. Nc3 {[%emt 0:00:53]} d5 {[%emt 0:00:13]} 3. Nf3 {[%emt 0:00:09]} dxe4 {[%emt 0:00:35]} 4. Nxe4 {[%emt 0:00:08]} Nf6 {[%emt 0:00:19]} 5. Qe2 {[%emt 0:00:45]} Nxe4 {[%emt 0:00:16]} 6. Qxe4 {[%emt 0:00:07]} Nd7 {[%emt 0:00:10]} 7. Bc4 {[%emt 0:00:54]} Nf6 {[%emt 0:00:11]} 8. Ne5 {[%emt 0:01:09]} e6 {[%emt 0:00:12]} 9. Qe2 {[%emt 0:00:13]} b5 {[%emt 0:00:31]} 10. Bb3 {[%emt 0:00:33]} Qc7 {[%emt 0:00:53]} 11. d4 {[%emt 0:01:13]} Bd6 {[%emt 0:00:41]} 12. O-O {[%emt 0:01:47]} O-O {[%emt 0:00:55]} 13. Bf4 {[%emt 0:01:49]} c5 {[%emt 0:04:37]} 14. dxc5 {[%emt 0:04:29]} Qxc5 {[%emt 0:00:15]} 15. c4 {[%emt 0:00:50]} bxc4 {[%emt 0:13:48]} 16. Bxc4 {[%emt 0:00:57]} Bb7 {[%emt 0:04:15]} 17. Rac1 {[%emt 0:06:38]} Nd5 {[%emt 0:07:04]} 18. Bg3 {[%emt 0:06:01]} Rad8 {[%emt 0:03:24]} 19. Rfd1 {[%emt 0:02:46]} Qb6 {[%emt 0:07:19]} 20. Bb5 {[%emt 0:16:14]} a6 {[%emt 0:09:48]} 21. Ba4 {[%emt 0:06:48]} Bxe5 {[%emt 0:04:57]} 22. Bxe5 {[%emt 0:00:44]} Rc8 {[%emt 0:02:51]} 23. Qg4 {[%emt 0:21:06]} g6 {[%emt 0:09:39]} 24. Bb3 {[%emt 0:04:57]} f6 {[%emt 0:02:50]} 25. Bd4 {[%emt 0:01:23]} Qd6 {[%emt 0:02:22]} 26. Rxc8 {[%emt 0:03:00]} Bxc8 {[%emt 0:03:09]} 27. Bxd5 {[%emt 0:00:40]} exd5 {[%emt 0:00:46]} 28. Qf3 {[%emt 0:00:15]} 1/2-1/2

[Event "2nd Cambridge Open 2024"]
[Site "Cambridge"]
[Date "2024.02.19"]
[Round "1.26"]
[White "Bradbury, Neil H"]
[Black "Davison, Chris"]
[Result "1/2-1/2"]
[ECO "E11"]
[WhiteElo "2217"]
[BlackElo "2013"]
[Annotator "RC"]
[PlyCount "100"]
[EventDate "2024.02.18"]
[EventType "swiss"]
[EventCountry "ENG"]
[SourceTitle "playchess.com"]
[Source "ChessBase"]
[SourceQuality "1"]
[TimeControl "5400+30"]

1. d4 {[%emt 0:00:08]} d5 {[%emt 0:00:06]} 2. c4 {[%emt 0:00:04]} e6 {[%emt 0:00:04]} 3. Nf3 {[%emt 0:00:11]} Nf6 {[%emt 0:00:08]} 4. g3 {[%emt 0:00:04]} Bb4+ {[%emt 0:00:27]} 5. Bd2 {[%emt 0:01:20]} Be7 {[%emt 0:00:06]} 6. Bg2 {[%emt 0:00:06]} O-O {[%emt 0:00:08]} 7. O-O {[%emt 0:00:20]} Nbd7 {[%emt 0:00:13]} 8. Qc2 {[%emt 0:03:52]} c6 {[%emt 0:00:20]} 9. Bf4 {[%emt 0:01:00]} b6 {[%emt 0:01:28]} 10. Nbd2 {[%emt 0:01:33]} Nh5 {[%emt 0:06:16]} 11. cxd5 {[%emt 0:06:04]} cxd5 {[%emt 0:06:32]} 12. Bc7 {[%emt 0:11:28]} Qe8 {[%emt 0:00:05]} 13. Rac1 {[%emt 0:00:19]} Bb7 {[%emt 0:02:03]} 14. Qa4 {[%emt 0:14:06]} Ndf6 {[%emt 0:05:10]} 15. Qb3 {[%emt 0:04:48]} Ba6 {[%emt 0:09:19]} 16. h3 {[%emt 0:14:06]} g6 {[%emt 0:11:28]} 17. g4 {[%emt 0:00:27]} Ng7 {[%emt 0:00:15]} 18. Qe3 {[%emt 0:04:53]} Nd7 {[%emt 0:08:22]} 19. Rc2 {[%emt 0:05:05]} f6 {[%emt 0:04:39]} 20. Bg3 {[%emt 0:05:24]} Qf7 {[%emt 0:03:15]} 21. Rc7 {[%emt 0:04:55]} Bd8 {[%emt 0:03:07]} 22. Rc6 {[%emt 0:01:51]} Bb5 {[%emt 0:02:34]} 23. Rcc1 {[%emt 0:00:40]} Be7 {[%emt 0:01:21]} 24. Rfe1 {[%emt 0:01:34]} a5 {[%emt 0:09:36]} 25. Qb3 {[%emt 0:00:57]} Ba6 {[%emt 0:00:27]} 26. e4 {[%emt 0:00:09]} dxe4 {[%emt 0:08:55]} 27. Nxe4 {[%emt 0:01:01]} Rfc8 {[%emt 0:06:09]} 28. Nd6 {[%emt 0:02:20]} Bxd6 {[%emt 0:00:06]} 29. Bxd6 {[%emt 0:00:20]} b5 {[%emt 0:07:08]} 30. Nd2 {[%emt 0:01:41]} Rxc1 {[%emt 0:00:36]} 31. Rxc1 {[%emt 0:00:01]} Rd8 {[%emt 0:00:38]} 32. Bg3 {[%emt 0:04:50]} Nf8 {[%emt 0:02:54]} 33. Ne4 {[%emt 0:03:49]} Rxd4 {[%emt 0:01:37]} 34. Nc5 {[%emt 0:01:18]} Qa7 {[%emt 0:01:22]} 35. Bf1 {[%emt 0:01:27]} a4 {[%emt 0:00:33]} 36. Qe3 {[%emt 0:02:22]} e5 {[%emt 0:00:24]} 37. Bxe5 {[%emt 0:01:15]} fxe5 {[%emt 0:00:06]} 38. Qxe5 {[%emt 0:00:01]} Rd8 {[%emt 0:00:21]} 39. Ne4 {[%emt 0:01:09]} Qb8 {[%emt 0:00:43]} 40. Rc7 {[%emt 0:01:04]} Nfe6 {[%emt 0:00:10]} 41. Rxg7+ {[%emt 0:02:09]} Nxg7 {[%emt 0:00:11]} 42. Qe7 {[%emt 0:00:01]} Re8 {[%emt 0:00:37]} 43. Nf6+ {[%emt 0:00:26]} Kh8 {[%emt 0:00:06]} 44. Nxe8 {[%emt 0:00:28]} Qxe8 {[%emt 0:00:04]} 45. Qf6 {[%emt 0:00:27]} Qe6 {[%emt 0:00:45]} 46. Qf8+ {[%emt 0:00:13]} Qg8 {[%emt 0:00:03]} 47. Qd6 {[%emt 0:00:09]} Qe6 {[%emt 0:00:34]} 48. Qf8+ {[%emt 0:00:05]} Qg8 {[%emt 0:00:03]} 49. Qd6 {[%emt 0:00:02]} Qe6 {[%emt 0:00:12]} 50. Qf8+ {[%emt 0:00:02]} Qg8 {[%emt 0:00:08]} 1/2-1/2

[Event "2nd Cambridge Open 2024"]
[Site "Cambridge"]
[Date "2024.02.19"]
[Round "1.27"]
[White "Pert, Nina"]
[Black "Shafi, Declan"]
[Result "0-1"]
[ECO "C54"]
[WhiteElo "1968"]
[BlackElo "2219"]
[Annotator "RC"]
[PlyCount "96"]
[EventDate "2024.02.18"]
[EventType "swiss"]
[EventCountry "ENG"]
[SourceTitle "playchess.com"]
[Source "ChessBase"]
[SourceQuality "1"]
[TimeControl "5400+30"]

1. e4 {[%emt 0:00:04]} e5 {[%emt 0:00:07]} 2. Nf3 {[%emt 0:00:05]} Nc6 {[%emt 0:00:05]} 3. Bc4 {[%emt 0:00:08]} Bc5 {[%emt 0:00:06]} 4. c3 {[%emt 0:00:14]} Nf6 {[%emt 0:00:07]} 5. d4 {[%emt 0:00:18]} exd4 {[%emt 0:00:13]} 6. cxd4 {[%emt 0:00:09]} Bb4+ {[%emt 0:00:10]} 7. Nbd2 {[%emt 0:00:20]} Bxd2+ {[%emt 0:00:56]} 8. Bxd2 {[%emt 0:00:22]} Nxe4 {[%emt 0:00:39]} 9. d5 {[%emt 0:00:48]} Ne7 {[%emt 0:00:21]} 10. O-O {[%emt 0:03:31]} Nxd2 {[%emt 0:00:49]} 11. Qxd2 {[%emt 0:00:56]} d6 {[%emt 0:00:28]} 12. Rfe1 {[%emt 0:02:21]} O-O {[%emt 0:00:33]} 13. Rad1 {[%emt 0:01:47]} Ng6 {[%emt 0:01:39]} 14. Qd4 {[%emt 0:03:18]} Bf5 {[%emt 0:03:05]} 15. Re3 {[%emt 0:08:43]} Re8 {[%emt 0:03:09]} 16. Rde1 {[%emt 0:01:29]} Rxe3 {[%emt 0:00:57]} 17. Rxe3 {[%emt 0:00:10]} c5 {[%emt 0:05:19]} 18. Qd1 {[%emt 0:05:00]} Qd7 {[%emt 0:02:23]} 19. Qb3 {[%emt 0:05:12]} Rb8 {[%emt 0:04:48]} 20. a4 {[%emt 0:03:03]} Qc7 {[%emt 0:09:42]} 21. h4 {[%emt 0:05:10]} Bg4 {[%emt 0:06:26]} 22. Nh2 {[%emt 0:01:24]} Bd7 {[%emt 0:01:17]} 23. h5 {[%emt 0:02:15]} Ne5 {[%emt 0:01:33]} 24. h6 {[%emt 0:02:19]} Qb6 {[%emt 0:17:15]} 25. Rg3 {[%emt 0:10:12]} g6 {[%emt 0:03:22]} 26. Bb5 {[%emt 0:02:12]} Bxb5 {[%emt 0:03:03]} 27. axb5 {[%emt 0:00:16]} Qa5 {[%emt 0:02:23]} 28. Nf1 {[%emt 0:12:15]} Qb4 {[%emt 0:03:37]} 29. Qc2 {[%emt 0:02:10]} Qxb5 {[%emt 0:08:11]} 30. Qf5 {[%emt 0:09:10]} Qe8 {[%emt 0:03:56]} 31. Nd2 {[%emt 0:02:44]} Qf8 {[%emt 0:03:16]} 32. Qh3 {[%emt 0:04:25]} f5 {[%emt 0:00:35]} 33. Qh4 {[%emt 0:03:47]} Re8 {[%emt 0:01:07]} 34. Qa4 {[%emt 0:01:53]} a6 {[%emt 0:00:30]} 35. Re3 {[%emt 0:01:09]} Re7 {[%emt 0:00:49]} 36. Qh4 {[%emt 0:00:14]} Re8 {[%emt 0:01:07]} 37. Qa4 {[%emt 0:00:36]} Rb8 {[%emt 0:02:34]} 38. f4 {[%emt 0:02:53]} Ng4 {[%emt 0:01:38]} 39. Re6 {[%emt 0:00:49]} Qxh6 {[%emt 0:04:03]} 40. Nf3 {[%emt 0:00:14]} Rd8 {[%emt 0:01:11]} 41. Qa5 {[%emt 0:00:32]} Qf8 {[%emt 0:00:40]} 42. Qc7 {[%emt 0:01:46]} Nf6 {[%emt 0:03:52]} 43. Ng5 {[%emt 0:01:29]} Re8 {[%emt 0:01:11]} 44. Rxd6 {[%emt 0:02:28]} Re7 {[%emt 0:00:54]} 45. Qxc5 {[%emt 0:00:31]} Rd7 {[%emt 0:00:33]} 46. Ne6 {[%emt 0:00:42]} Qxd6 {[%emt 0:00:48]} 47. Qc8+ {[%emt 0:00:06]} Kf7 {[%emt 0:00:21]} 48. Ng5+ {[%emt 0:00:31]} Ke7 {[%emt 0:01:06]} 0-1

[Event "2nd Cambridge Open 2024"]
[Site "Cambridge"]
[Date "2024.02.19"]
[Round "1.28"]
[White "McClement, Andrew"]
[Black "Mocic, Ivano"]
[Result "1/2-1/2"]
[ECO "A13"]
[WhiteElo "2223"]
[BlackElo "2008"]
[Annotator "RC"]
[PlyCount "138"]
[EventDate "2024.02.18"]
[EventType "swiss"]
[EventCountry "ENG"]
[SourceTitle "playchess.com"]
[Source "ChessBase"]
[SourceQuality "1"]
[TimeControl "5400+30"]

1. Nf3 {[%emt 0:00:03]} d5 {[%emt 0:00:06]} 2. c4 {[%emt 0:00:02]} e6 {[%emt 0:00:07]} 3. g3 {[%emt 0:00:06]} d4 {[%emt 0:00:04]} 4. d3 {[%emt 0:00:44]} Nc6 {[%emt 0:00:10]} 5. Bg2 {[%emt 0:00:06]} Bc5 {[%emt 0:00:06]} 6. O-O {[%emt 0:03:51]} Nf6 {[%emt 0:00:36]} 7. Na3 {[%emt 0:02:10]} O-O {[%emt 0:02:40]} 8. Nc2 {[%emt 0:00:34]} a5 {[%emt 0:00:19]} 9. b3 {[%emt 0:08:56]} Qe7 {[%emt 0:08:56]} 10. a3 {[%emt 0:05:29]} e5 {[%emt 0:12:26]} 11. Nd2 {[%emt 0:05:53]} Bd7 {[%emt 0:07:10]} 12. Rb1 {[%emt 0:00:19]} Rfe8 {[%emt 0:09:04]} 13. Ne4 {[%emt 0:14:29]} Nxe4 {[%emt 0:03:51]} 14. dxe4 {[%emt 0:02:31]} Be6 {[%emt 0:03:56]} 15. Qd2 {[%emt 0:05:10]} Ba7 {[%emt 0:06:19]} 16. Qd3 {[%emt 0:00:44]} Bc5 {[%emt 0:02:24]} 17. f4 {[%emt 0:09:29]} f6 {[%emt 0:05:51]} 18. Kh1 {[%emt 0:38:54]} g5 {[%emt 0:06:57]} 19. fxg5 {[%emt 0:00:00]} fxg5 {[%emt 0:00:08]} 20. Qd2 {[%emt 0:00:00]} h6 {[%emt 0:00:15]} 21. b4 {[%emt 0:00:00]} axb4 {[%emt 0:02:01]} 22. axb4 {[%emt 0:00:00]} Ba7 {[%emt 0:03:14]} 23. Ba3 {[%emt 0:00:00]} b5 {[%emt 0:01:25]} 24. cxb5 {[%emt 0:00:00]} Nd8 {[%emt 0:01:25]} 25. Qd3 {[%emt 0:00:00]} Nb7 {[%emt 0:00:52]} 26. Bc1 {[%emt 0:00:00]} Nd6 {[%emt 0:00:19]} 27. Na3 {[%emt 0:00:00]} Rab8 {[%emt 0:02:10]} 28. Bd2 {[%emt 0:00:00]} Bd7 {[%emt 0:05:35]} 29. Ra1 {[%emt 0:00:00]} Rb7 {[%emt 0:00:43]} 30. Rfc1 {[%emt 0:00:00]} Rc8 {[%emt 0:03:58]} 31. Rc2 {[%emt 0:00:00]} Bb6 {[%emt 0:01:14]} 32. Rf1 {[%emt 0:00:27]} Kg7 {[%emt 0:01:03]} 33. Qb3 {[%emt 0:01:40]} Be6 {[%emt 0:01:20]} 34. Qd3 {[%emt 0:00:11]} Ra7 {[%emt 0:00:46]} 35. Bc1 {[%emt 0:01:32]} Ra4 {[%emt 0:02:01]} 36. Bd2 {[%emt 0:02:33]} Rca8 {[%emt 0:02:42]} 37. Nb1 {[%emt 0:00:02]} Bd7 {[%emt 0:00:44]} 38. Qb3 {[%emt 0:00:38]} Bxb5 {[%emt 0:02:04]} 39. Bf3 {[%emt 0:00:26]} Bd7 {[%emt 0:01:27]} 40. e3 {[%emt 0:00:49]} Be6 {[%emt 0:00:43]} 41. Qd3 {[%emt 0:00:03]} dxe3 {[%emt 0:01:04]} 42. Bxe3 {[%emt 0:00:09]} Bxe3 {[%emt 0:03:15]} 43. Qxe3 {[%emt 0:00:02]} Nc4 {[%emt 0:00:00]} 44. Qe2 {[%emt 0:01:10]} Rxb4 {[%emt 0:00:09]} 45. Nd2 {[%emt 0:02:11]} Nd6 {[%emt 0:00:38]} 46. Rfc1 {[%emt 0:02:07]} Rc8 {[%emt 0:00:23]} 47. Qa6 {[%emt 0:00:00]} Rb6 {[%emt 0:00:41]} 48. Qa5 {[%emt 0:00:00]} Nf7 {[%emt 0:00:28]} 49. Nc4 {[%emt 0:00:00]} Bxc4 {[%emt 0:00:27]} 50. Rxc4 {[%emt 0:00:00]} Rf6 {[%emt 0:00:36]} 51. Bg4 {[%emt 0:00:00]} Rf8 {[%emt 0:00:27]} 52. Rxc7 {[%emt 0:00:00]} Qd6 {[%emt 0:00:29]} 53. Rd7 {[%emt 0:00:00]} Qb8 {[%emt 0:00:27]} 54. Qd5 {[%emt 0:00:51]} Rd8 {[%emt 0:00:36]} 55. Bf5 {[%emt 0:01:09]} Rxd7 {[%emt 0:00:16]} 56. Qxd7 {[%emt 0:00:05]} Qd6 {[%emt 0:00:40]} 57. Rc7 {[%emt 0:01:03]} Qxd7 {[%emt 0:00:35]} 58. Rxd7 {[%emt 0:00:02]} Kf8 {[%emt 0:00:15]} 59. Rd5 {[%emt 0:00:32]} Rd6 {[%emt 0:00:21]} 60. Kg2 {[%emt 0:00:48]} Ke7 {[%emt 0:00:24]} 61. Kf3 {[%emt 0:00:16]} Kf6 {[%emt 0:00:37]} 62. Rxd6+ {[%emt 0:01:24]} Nxd6 {[%emt 0:00:10]} 63. Bd7 {[%emt 0:00:02]} Ke7 {[%emt 0:01:00]} 64. Bc6 {[%emt 0:00:04]} Kf6 {[%emt 0:00:41]} 65. Kg4 {[%emt 0:00:30]} Nc4 {[%emt 0:00:37]} 66. Kf3 {[%emt 0:01:57]} Nd6 {[%emt 0:00:23]} 67. Ke3 {[%emt 0:00:19]} Nc4+ {[%emt 0:00:32]} 68. Ke2 {[%emt 0:00:34]} Nb6 {[%emt 0:00:24]} 69. Kd3 {[%emt 0:00:25]} Ke7 {[%emt 0:00:26]} 1/2-1/2

[Event "2nd Cambridge Open 2024"]
[Site "Cambridge"]
[Date "2024.02.19"]
[Round "1.29"]
[White "Hutchinson, Paul A"]
[Black "Gluma, Christian"]
[Result "1/2-1/2"]
[ECO "B15"]
[WhiteElo "2013"]
[BlackElo "2256"]
[Annotator "TA"]
[PlyCount "87"]
[EventDate "2024.02.18"]
[EventType "swiss"]
[EventCountry "ENG"]
[SourceTitle "playchess.com"]
[Source "ChessBase"]
[SourceQuality "1"]
[TimeControl "5400+30"]

{[%evp 9,87,1,6,-17,-18,-24,-12,-51,-23,-21,-25,-62,-62,-152,-132,-145,-112,-119,-48,-47,-14,-21,-12,-38,-14,-61,8,-79,-16,-31,0,0,0,-14,10,-6,0,0,0,-59,-25,-32,-24,-37,-16,-25,-17,-22,-18,-37,-38,-114,-97,-116,-130,-116,-88,-105,-14,-20,0,0,0,0,0,0,0,-97,-79,-79,-79,-86,-83,-84,0,0,0,0,0,0]} 1. d4 {[%emt 0:00:01]} g6 {[%emt 0:00:09]} 2. e4 {[%emt 0:00:12]} Bg7 {[%emt 0:00:03]} 3. Nc3 {[%emt 0:00:10]} c6 {[%emt 0:00:06]} 4. Be3 {[%emt 0:00:29]} d5 {[%emt 0:00:05]} 5. f3 {[%emt 0:01:22]} Qb6 {[%emt 0:01:34]} 6. a3 {[%emt 0:00:55]} e5 {[%emt 0:02:47][%cal Re5d4]} 7. Na4 {[%emt 0:02:07]} Qa5+ {[%emt 0:01:48]} 8. c3 {[%emt 0:00:09]} dxe4 {[%emt 0:08:45]} 9. fxe4 {[%emt 0:04:48]} Nf6 {[%emt 0:02:28]} 10. b4 {[%emt 0:00:49]} Qc7 {[%emt 0:05:35]} 11. Bd3 {[%emt 0:02:37]} (11. Nf3 $15) 11... Ng4 $17 {[%emt 0:06:34]} 12. Qe2 {[%emt 0:00:17]} Nxe3 {[%emt 0:08:48]} 13. Qxe3 {[%emt 0:00:08] [#]} O-O {[%emt 0:07:04]} ({Günstiger ist} 13... a5 $1 $17 {[%cal Ra5b4]} 14. b5 cxb5 15. Bxb5+ Bd7) 14. Nf3 $15 {[%emt 0:01:54]} exd4 {[%emt 0:03:28]} 15. cxd4 {[%emt 0:00:09]} Bg4 {[%emt 0:04:00]} 16. O-O {[%emt 0:02:28]} Nd7 {[%emt 0:02:41] Und ...Bxf3 würde nun gewinnen.} 17. Rac1 {[%emt 0:04:41]} (17. e5 $11 {kam in Betracht.}) 17... Qd8 {[%emt 0:02:03]} (17... Bxf3 $15 18. Rxf3 Rad8) 18. Nc3 {[%emt 0:08:59]} (18. e5 $11 {bleibt in der Remisbreite.}) 18... Nb6 {[%emt 0:08:52]} (18... Bxf3 $17 19. gxf3 Nc5) 19. e5 {[%emt 0:03:16]} Qd7 {[%emt 0:02:05]} 20. Ne4 {[%emt 0:03:01]} Nd5 {[%emt 0:06:15] Es drohte Nf6+} 21. Qd2 {[%emt 0:01:13]} Rad8 {[%emt 0:04:30]} 22. Nd6 {[%emt 0:04:33]} f6 {[%emt 0:05:07]} 23. Bc4 $1 {[%emt 0:05:51]} Kh8 {[%emt 0:04:14] Weiss muss nun ...fxe5 beachten.} 24. Qe1 {[%emt 0:24:23]} (24. Bxd5 $11 cxd5 25. Qe3) 24... fxe5 {[%emt 0:04:12]} (24... Bh6 $5 25. Bxd5 Bxc1 26. Nf7+ Rxf7 27. Bxf7 Bxf3 (27... Bxa3 28. Qh4 $15) 28. Qxc1 Qxd4+ 29. Kh1 Be2 $11) 25. dxe5 {[%emt 0:01:12]} Qe7 {[%emt 0:02:32]} 26. Kh1 {[%emt 0:08:13]} Bxf3 {[%emt 0:01:33]} (26... Bh6 $5 27. Rd1 Bg7 $14 (27... Ne3 28. Nf7+ Rxf7 29. Rxd8+ Qxd8 30. Bxf7 $15)) 27. Rxf3 {[%emt 0:01:46]} Rxf3 {[%emt 0:00:20]} 28. gxf3 {[%emt 0:00:12]} Rf8 {[%emt 0:00:41]} (28... Bxe5 $2 29. Qxe5+ Qxe5 30. Nf7+ (30. Nxb7 $2 Qf4 $19) 30... Kg7 31. Nxe5 $18) 29. Bxd5 {[%emt 0:14:09]} cxd5 {[%emt 0:00:10]} 30. f4 {[%emt 0:00:24]} Rxf4 {[%emt 0:02:05][%cal Of4f8]} 31. Rc8+ {[%emt 0:00:07]} Rf8 {[%emt 0:00:06]} 32. Rxf8+ {[%emt 0:00:16]} Qxf8 $17 {[%emt 0:00:53][%mdl 4096] Endspiel. KQB-KQN} 33. Qe2 {[%emt 0:00:13][%cal Oe5e6] Verhindert Qf3+.} Qe7 {[%emt 0:01:38]} (33... d4 $17 {...h5 ist eine echte Drohung.} 34. Kg2 Qe7) 34. e6 $1 $11 {[%emt 0:00:21]} Bf6 {[%emt 0:00:48]} (34... Qxd6 $2 {verliert.} 35. e7 h6 36. e8=Q+ $18 (36. e8=B $2 {geht unter.} Qf4 $19)) (34... d4 $5 35. Qe4 d3 (35... Qxd6 $2 36. e7 $18) 36. Qxd3 Qxe6 $11) 35. Nc8 {[%emt 0:01:31][%csl LRa7,LRe7]} Qe8 {[%emt 0:00:59]} 36. e7 {[%emt 0:02:10]} d4 {[%emt 0:01:12]} 37. Qe6 {[%emt 0:00:19]} Kg7 {[%emt 0:00:33] [#] Zielt auf ...d3 ab.} 38. Nd6 {[%emt 0:00:42]} (38. Kg2 $1 $11) 38... Qxe7 {[%emt 0:00:46]} (38... Qc6+ {sieht schärfer aus.} 39. Kg1 Qc1+ 40. Kf2 Qf4+) 39. Ne8+ {[%emt 0:00:12]} ({Jedoch nicht} 39. Qxe7+ $2 Bxe7 40. Nc4 Kf7 $19) 39... Kf8 {[%emt 0:00:48]} 40. Qxf6+ {[%emt 0:00:30]} Kxe8 {[%emt 0:00:09]} 41. Qxd4 {[%emt 0:00:07]} Qe1+ {[%emt 0:00:49]} (41... a6 $17) 42. Kg2 {[%emt 0:00:07] Die Stellung ist ausgeglichen.} Qe2+ {[%emt 0:00:18]} 43. Kg3 {[%emt 0:00:22]} Qe1+ {[%emt 0:00:27]} 44. Kg2 {[%emt 0:00:07] Gewichteter Fehlerwert: Weiß=0.21 (präzise) /Schwarz=0.20 (präzise) .  Fehler:       	Weiß=6     	Schwarz=5     Ungenau:       	Weiß=2     	Schwarz=4     OK:         	Weiß=12    	Schwarz=9     Bester:       	Weiß=3     	Schwarz=5     Stark:        	Weiß=2     	---} 1/2-1/2